Workbook

Sheet Intro
B8: Risk Scenario Planning
E12: Version 1.11
B18: By:
B19: John P. Hewlett, University of Wyoming
B20: Dr. Jay Parsons, University of Nebraska-Lincoln
G25: © | H25: Copyright RightRisk - All rights reserved, 2013.

Sheet SimplePartialBudget
F1: Replace Corn with forage for grazing
B3: Partial Budget For:
B4: Positive Effects | F4: Negative Effects
B5: Added Returns | C5: Quantity | D5: Value | E5: Total | F5: Added Costs | G5: Quantity | H5: Value
B6: Forage Rental Value | C6: 1 | D6: =C9*C10/C8 -> 330 | E6: =C6*D6 -> 330 | F6: Forage Production Cost (annual operating) | G6: 1 | H6: 164 | I6: =G6*H6 -> 164
E7: =C7*D7 -> 0 | F7: Interest on annual operating costs | G7: 1 | H7: 4.1 | I7: =G7*H7 -> 4.1
B8: Forage acres per head | C8: 1 | E8: =C8*D8 -> 0 | F8: Establishment costs (amortized over 10 years) | G8: 1 | H8: 31.86 | I8: =G8*H8 -> 31.86
B9: Cow/calf pair rental rate per month | C9: 55 | E9: =C9*D9 -> 0 | I9: =G9*H9 -> 0
B10: Months | C10: 6 | E10: 0 | I10: 0
E11: 0 | I11: 0
E12: 0 | I12: 0
E13: 0 | I13: 0
E14: 0 | I14: 0
E15: 0 | I15: 0
E16: 0 | I16: 0
E17: 0 | I17: 0
E18: 0 | I18: 0
E19: 0 | I19: 0
E20: 0 | I20: 0
E21: 0 | I21: 0
E22: 0 | I22: 0
E23: 0 | I23: 0
E24: 0 | I24: 0
E25: 0 | I25: 0
B26: Total Added Returns | E26: =SUM(E6:E25) -> 330 | F26: Total Added Costs | I26: =SUM(I6:I25) -> 199.96
B27: Reduced Costs | C27: Quantity | D27: Value | F27: Reduced Returns | G27: Quantity | H27: Value
B28: Corn Production Cost savings | C28: 1 | D28: 473.7 | E28: =C28*D28 -> 473.7 | F28: Corn Grain Sales | G28: 230 | H28: 3.5 | I28: =G28*H28 -> 805
E29: =C29*D29 -> 0 | F29: Corn Stalk Rental | G29: 1 | H29: 15 | I29: =G29*H29 -> 15
E30: =C30*D30 -> 0 | I30: =G30*H30 -> 0
E31: =C31*D31 -> 0 | I31: =G31*H31 -> 0
E32: 0 | I32: 0
E33: 0 | I33: 0
E34: 0 | I34: 0
E35: 0 | I35: 0
E36: 0 | I36: 0
E37: 0 | I37: 0
E38: 0 | I38: 0
E39: 0 | I39: 0
E40: 0 | I40: 0
E41: 0 | I41: 0
E42: 0 | I42: 0
E43: 0 | I43: 0
E44: 0 | I44: 0
E45: 0 | I45: 0
E46: 0 | I46: 0
E47: 0 | I47: 0
B48: Total Reduced Costs | E48: =SUM(E28:E47) -> 473.7 | F48: Total Reduced Returns | I48: =SUM(I28:I47) -> 820
B50: Total Positive Effects | F50: Total Negative Effects
B51: (Added Returns + Reduced Costs) | E51: =E26+E48 -> 803.7 | F51: (Added Costs + Reduced Returns) | I51: =I26+I48 -> 1019.96
B53: =CONCATENATE("Net Benefit of: ",IF(F1="Enter description of action/concern here","",F1)) -> Net Benefit of: Replace Corn with forage for grazing | I53: =E51-I51 -> -216.26
B55: Risk Scenarios
B56: Uncertain Value 1 | F56: Uncertain Value 2
B57: Description | C57: Cell | F57: Description | G57: Cell
B58: Corn Grain Price | C58: H28 | F58: Cow grazing costs | G58: C9
B60: Current Value (Most Likely) | C60: 3.5 | F60: Current Value (Most Likely) | G60: 55
B61: Minimum Value | C61: 2.5 | F61: Minimum Value | G61: 35
B62: Maximum Value | C62: 4 | F62: Maximum Value | G62: 75

Sheet ComplexPartialBudget (hidden)
H1: Enter description of action/concern here
G3: Partial Budget For:
D4: Positive Effects ($ per Year) | J4: Negative Effects ($ per Year)
C5: Added Returns | F5: Profitability | G5: Cash Flow | I5: Added Costs | L5: Profitibility | M5: Cash Flow
B6: 1 | H6: 1
B7: 2 | H7: 2
B8: 3 | H8: 3
B9: 4 | H9: 4
B10: 5 | H10: 5
B11: 6 | H11: 6
B12: 7 | H12: 7
B13: 8 | H13: 8
B14: 9 | H14: 9
B15: 10 | H15: 10
B16: 11 | H16: 11
B17: 12 | H17: 12
B18: 13 | H18: 13
B19: 14 | H19: 14
B20: 15 | H20: 15
B21: 16 | H21: 16
B22: 17 | H22: 17
B23: 18 | H23: 18
B24: 19 | H24: 19
B25: 20 | H25: 20
C26: Total Added Returns | F26: =SUM(F6:F25) -> 0 | G26: =SUM(G6:G25) -> 0 | I26: Total Added Costs | L26: =SUM(L6:L25) -> 0 | M26: =SUM(M6:M25) -> 0
C28: Reduced Costs | F28: Profitibility | G28: Cash Flow | I28: Reduced Returns | L28: Profitibility | M28: Cash Flow
B29: 1 | H29: 1
B30: 2 | H30: 2
B31: 3 | H31: 3
B32: 4 | H32: 4
B33: 5 | H33: 5
B34: 6 | H34: 6
B35: 7 | H35: 7
B36: 8 | H36: 8
B37: 9 | H37: 9
B38: 10 | H38: 10
B39: 11 | H39: 11
B40: 12 | H40: 12
B41: 13 | H41: 13
B42: 14 | H42: 14
B43: 15 | H43: 15
B44: 16 | H44: 16
B45: 17 | H45: 17
B46: 18 | H46: 18
B47: 19 | H47: 19
B48: 20 | H48: 20
C49: Total Reduced Costs | F49: =SUM(F29:F48) -> 0 | G49: =SUM(G29:G48) -> 0 | I49: Total Reduced Returns | L49: =SUM(L29:L48) -> 0 | M49: =SUM(M29:M48) -> 0
C51: Total Positive Effects | F51: =F26+F49 -> 0 | G51: =G26+G49 -> 0 | I51: Total Negative Effects | L51: =L26+L49 -> 0 | M51: =M26+M49 -> 0
G52: Financial Analysis
B53: 1 | C53: Change in annual profit:
D54: Total Positive Effect (Profit Column) | J54: =F51 -> 0 | K54: A
D55: Minus:
D56: Total Negative Effect (Profit Column) | J56: =L51 -> 0 | K56: B | L56: (A-B) | M56: =F51-L51 -> 0 | N56: #1
B58: 2 | C58: Average Annual Rate of Return on Investment:
D59: Annual Profit or (Loss) From Line #1 | J59: =M56 -> 0 | K59: C
D60: Plus:
D61: Interest Cost (ON INVESTMENTS) From Profit Column | J61: 0 | K61: D
D62: Divided By:
D63: Dollars Invested | J63: 0 | K63: E ((C+D)/E)x100 =% | M63: =IF(J61<=0,NA(),J59+J61/J63) ->  | N63: #2
B65: 3 | C65: After-tax Cash Available for Annual Retirement of Principal:
D66: Total Positive Effect (Cash Flow Column) | J66: =G51 -> 0 | K66: F
D67: Minus:
D68: Total Negative Effect (Cash Flow Column) | J68: =M51 -> 0 | K68: G
D69: Minus:
D70: Change in Profit | J70: =M56 -> 0 | K70: H
D71: Times:
D72: Marginal Tax Rate (Combined State and Federal) | J72: 0.48 | K72: I [(F-G)-(H x I)] | M72: =J66-J68-(J70*J72) -> 0 | N72: #3
B74: 4 | C74: Years to Recover Debt:
D75: Loan Amount | F75: 0 | G75: Divided by | I75: Line #3 | J75: =M72 -> 0 | L75: Equals: | M75: =IF(F75<=0,NA(),F75/J75) ->  | N75: #4

Sheet RV1 (hidden)
A1: TRUE
B2: DISTRIBUTION SCHEDULE | H2: Random
G3: Iteration | H3: Draw | I3: Value
C4: Interval | D4: Unit | G4: 1 | H4: 0.8784519421 | I4: =IF(Max>Min,BETAINV(H4,ShapeA,ShapeB,Min,Max),Min) -> 3.714213543
C5: 0.5 | G5: 2 | H5: 0.1564518023 | I5: 3.148727845
C6: 0.5 | G6: 3 | H6: 0.2146774587 | I6: 3.210082595
C7: 0.25 | G7: 4 | H7: 0.4686818479 | I7: 3.410500616
C8: =(Max-Min)/35 -> 0.04285714286 | D8: =IF(B8="Days","Day",IF(B8="Weeks","Week","Month")) -> Month | G8: 5 | H8: 0.3315335725 | I8: 3.310509471
G9: 6 | H9: 0.7097902835 | I9: 3.576283681
B10: INPUTS | G10: 7 | H10: 0.6116825683 | I10: 3.507989317
B11: Min | C11: =SimplePartialBudget!C61 -> 2.5 | D11: =B8 -> 0 | G11: 8 | H11: 0.8234668504 | I11: 3.66397056
B12: Max | C12: =SimplePartialBudget!C62 -> 4 | D12: =B8 -> 0 | G12: 9 | H12: 0.3047262842 | I12: 3.289222013
B13: Mode | C13: =SimplePartialBudget!C60 -> 3.5 | D13: =B8 -> 0 | G13: 10 | H13: 0.1071912873 | I13: 3.084909968
G14: 11 | H14: 0.5000232828 | I14: 3.432094195
B15: PERT ESTIMATES | G15: 12 | H15: 0.7737583031 | I15: 3.623819947
B16: Mean | C16: =(Min+Max+4*Mode)/6 -> 3.416666667 | D16: =B8 -> 0 | G16: 13 | H16: 0.2018037162 | I16: 3.197424882
B17: Std. Dev. | C17: =(Max-Min)/6 -> 0.25 | D17: =B8 -> 0 | G17: 14 | H17: 0.7358527122 | I17: 3.595234501
B18: Skew | C18: =(2*(ShapeB-ShapeA)/(ShapeA+ShapeB+2))*((ShapeA+ShapeB+1)/(ShapeA*ShapeB))^0.5 -> -0.2790697674 | G18: 15 | H18: 0.3434914446 | I18: 3.319763606
B19: Shape A | C19: =IF(Max>Min,((Mean-Min)/(Max-Min))*((((Mean-Min)*(Max-Mean))/(StdDev^2))-1),0) -> 4.617283951 | G19: 16 | H19: 0.3955516475 | I19: 3.358649093
B20: Shape B | C20: =ShapeA*(Max-Mean)/(Mean-Min) -> 2.938271605 | G20: 17 | H20: 0.07860582201 | I20: 3.038742002
G21: 18 | H21: 0.2808874198 | I21: 3.269560513
B22: CALCULATED VALUES | G22: 19 | H22: 0.07137048235 | I22: 3.025342162
B23: Mean - Mode | D23: Weeks | G23: 20 | H23: 0.3466516786 | I23: 3.322186788
B24: Median - Mode | C24: 3.099706411 | D24: Weeks | G24: 21 | H24: 0.07817217402 | I24: 3.037962554
B25: Gammaa | C25: 1.465425583 | G25: 22 | H25: 0.23345137 | I25: 3.227819412
B26: Gammab | C26: 14.73721569 | G26: 23 | H26: 0.09965283004 | I26: 3.073599769
B27: Gammaab | C27: 1272.633337 | G27: 24 | H27: 0.5708741404 | I27: 3.480273395
B28: BetaFn | C28: 0.001696976833 | G28: 25 | H28: 0.2384872257 | I28: 3.232446079
G29: 26 | H29: 0.02566996562 | I29: 2.905941365
G30: 27 | H30: 0.3589285738 | I30: 3.331516706
B31: Data | C31: PDF No Data | D31: CDF No Data | G31: 28 | H31: 0.02943851056 | I31: 2.919881539
A32: 1 | B32: =Min -> 2.5 | C32: =(D33-D32) -> 2.496912888e-06 | D32: 0 | G32: 29 | H32: 0.1861171816 | I32: 3.181373438
A33: 2 | B33: =+B32+((Max-Min)/30) -> 2.55 | C33: =+D34-D33 -> 5.54890913e-05 | D33: =BETADIST(B33,ShapeA,ShapeB,Min,Max) -> 2.496912888e-06 | G33: 30 | H33: 0.0360447801 | I33: 2.941536383
A34: 3 | B34: 2.6 | C34: 0.0002982064609 | D34: 5.798600419e-05 | G34: 31 | H34: 0.5645094249 | I34: 3.475959359
A35: 4 | B35: 2.65 | C35: 0.0009118736083 | D35: 0.0003561924651 | G35: 32 | H35: 0.4088927099 | I35: 3.368309291
A36: 5 | B36: 2.7 | C36: 0.002077138175 | D36: 0.001268066073 | G36: 33 | H36: 0.3535528791 | I36: 3.327447396
A37: 6 | B37: 2.75 | C37: 0.003950046767 | D37: 0.003345204248 | G37: 34 | H37: 0.402081581 | I37: 3.363390729
A38: 7 | B38: 2.8 | C38: 0.006646428913 | D38: 0.007295251015 | G38: 35 | H38: 0.1999454762 | I38: 3.195561102
A39: 8 | B39: 2.85 | C39: 0.01023171241 | D39: 0.01394167993 | G39: 36 | H39: 0.307604856 | I39: 3.291546917
A40: 9 | B40: 2.9 | C40: 0.01471482417 | D40: 0.02417339234 | G40: 37 | H40: 0.9590848768 | I40: 3.815766496
A41: 10 | B41: 2.95 | C41: 0.0200454228 | D41: 0.03888821651 | G41: 38 | H41: 0.8690696944 | I41: 3.705026022
A42: 11 | B42: 3 | C42: 0.02611398897 | D42: 0.05893363931 | G42: 39 | H42: 0.917440395 | I42: 3.756608129
A43: 12 | B43: 3.05 | C43: 0.03275445259 | D43: 0.08504762828 | G43: 40 | H43: 0.9078934365 | I43: 3.745454965
A44: 13 | B44: 3.1 | C44: 0.03974912938 | D44: 0.1178020809 | G44: 41 | H44: 0.04614991585 | I44: 2.969813754
A45: 14 | B45: 3.15 | C45: 0.04683580073 | D45: 0.1575512102 | G45: 42 | H45: 0.728701758 | I45: 3.589985716
A46: 15 | B46: 3.2 | C46: 0.05371681423 | D46: 0.204387011 | G46: 43 | H46: 0.04866417152 | I46: 2.976167599
A47: 16 | B47: 3.25 | C47: 0.06007011552 | D47: 0.2581038252 | G47: 44 | H47: 0.3235483383 | I47: 3.304250488
A48: 17 | B48: 3.3 | C48: 0.06556214901 | D48: 0.3181739407 | G48: 45 | H48: 0.1289955818 | I48: 3.115016717
A49: 18 | B49: 3.35 | C49: 0.06986258904 | D49: 0.3837360897 | G49: 46 | H49: 0.05397892591 | I49: 2.988890055
A50: 19 | B50: 3.4 | C50: 0.07266088698 | D50: 0.4535986788 | G50: 47 | H50: 0.6950386607 | I50: 3.565753485
A51: 20 | B51: 3.45 | C51: 0.07368464509 | D51: 0.5262595657 | G51: 48 | H51: 0.0009739403319 | I51: 2.688325113
A52: 21 | B52: 3.5 | C52: 0.07271985935 | D52: 0.5999442108 | G52: 49 | H52: 0.408020472 | I52: 3.367680921
A53: 22 | B53: 3.55 | C53: 0.0696331144 | D53: 0.6726640702 | G53: 50 | H53: 0.5717081049 | I53: 3.480838696
A54: 23 | B54: 3.6 | C54: 0.06439587389 | D54: 0.7422971846 | G54: 51 | H54: 0.1906324356 | I54: 3.186069942
A55: 24 | B55: 3.65 | C55: 0.05711110353 | D55: 0.8066930585 | G55: 52 | H55: 0.9378213487 | I55: 3.782866318
A56: 25 | B56: 3.7 | C56: 0.04804262613 | D56: 0.863804162 | G56: 53 | H56: 0.1095615759 | I56: 3.088360475
A57: 26 | B57: 3.75 | C57: 0.03764791181 | D57: 0.9118467881 | G57: 54 | H57: 0.6662152279 | I57: 3.54550116
A58: 27 | B58: 3.8 | C58: 0.0266156478 | D58: 0.9494947 | G58: 55 | H58: 0.3293273623 | I58: 3.308786759
A59: 28 | B59: 3.85 | C59: 0.01591101241 | D59: 0.9761103478 | G59: 56 | H59: 0.2711103769 | I59: 3.26126655
A60: 29 | B60: 3.9 | C60: 0.006836529437 | D60: 0.9920213602 | G60: 57 | H60: 0.1481186227 | I60: 3.138905889
A61: 30 | B61: 3.95 | C61: 0 | D61: 0.9988578896 | G61: 58 | H61: 0.1433724876 | I61: 3.133161865
A62: 31 | B62: =Max -> 4 | C62: =+D62-D61 -> 0 | D62: =BETADIST(B61,ShapeA,ShapeB,Min,Max) -> 0.9988578896 | G62: 59 | H62: 0.7596598828 | I62: 3.613022936
C63: =SUM(C32:C62) -> 0.9988578896 | G63: 60 | H63: 0.3866056428 | I63: 3.352109077
B64: Cumulative Beta Percentile | D64: =B8 -> 0 | G64: 61 | H64: 0.1433153348 | I64: 3.133091996
B65: 0.25 | D65: =BETAINV(B65,ShapeA,ShapeB,Min,Max) -> 3.24283475 | G65: 62 | H65: 0.2038380631 | I65: 3.199454316
B66: 0.5 | D66: =BETAINV(B66,ShapeA,ShapeB,Min,Max) -> 3.432078247 | G66: 63 | H66: 0.5639411686 | I66: 3.475574198
B67: 0.75 | D67: =BETAINV(B67,ShapeA,ShapeB,Min,Max) -> 3.605742949 | G67: 64 | H67: 0.2253004546 | I67: 3.220216918
B68: 0.9 | D68: =BETAINV(B68,ShapeA,ShapeB,Min,Max) -> 3.736658652 | G68: 65 | H68: 0.1334883535 | I68: =IF(Max>Min,BETAINV(H68,ShapeA,ShapeB,Min,Max),Min) -> 3.12081527
B69: 0.95 | D69: =BETAINV(B69,ShapeA,ShapeB,Min,Max) -> 3.800787559 | G69: 66 | H69: 0.103046686 | I69: 3.07875735
G70: 67 | H70: 0.9708064565 | I70: 3.83816111
B71: Quick Estimate at 95% Probability | G71: 68 | H71: 0.06611625733 | I71: 3.01503089
B72: Mean + 2x Std. Dev.= | C72: =Mean+2*StdDev -> 3.916666667 | D72: =B8 -> 0 | G72: 69 | H72: 0.327765248 | I72: 3.30756399
B73: Mean - 2x Std. Dev.= | C73: =Mean-2*StdDev -> 2.916666667 | D73: =B8 -> 0 | G73: 70 | H73: 0.9423645824 | I73: 3.789311221
G74: 71 | H74: 0.248965223 | I74: 3.241911301
G75: 72 | H75: 0.004806952317 | I75: 2.772013545
G76: 73 | H76: 0.2682037702 | I76: 3.258772609
G77: 74 | H77: 0.589878983 | I77: 3.493162822
G78: 75 | H78: 0.2277213957 | I78: 3.222490114
G79: 76 | H79: 0.170498495 | I79: 3.164600582
G80: 77 | H80: 0.3507462641 | I80: 3.325313035
G81: 78 | H81: 0.8330492313 | I81: 3.672187491
G82: 79 | H82: 0.3311808804 | I82: 3.310234403
G83: 80 | H83: 0.6836968666 | I83: 3.557738061
G84: 81 | H84: 0.1238537894 | I84: 3.108224366
G85: 82 | H85: 0.09151454136 | I85: 3.060751347
G86: 83 | H86: 0.4871142128 | I86: 3.423232307
G87: 84 | H87: 0.3007297492 | I87: 3.285977423
G88: 85 | H88: 0.5431824367 | I88: 3.461497827
G89: 86 | H89: 0.9266328381 | I89: 3.767980505
G90: 87 | H90: 0.8378073199 | I90: 3.67633888
G91: 88 | H91: 0.8163095191 | I91: 3.657948847
G92: 89 | H92: 0.5517277242 | I92: 3.467294545
G93: 90 | H93: 0.2418574847 | I93: 3.235513818
G94: 91 | H94: 0.4328025706 | I94: 3.385375567
G95: 92 | H95: 0.09014543175 | I95: 3.058517677
G96: 93 | H96: 0.2095170718 | I96: 3.205060652
G97: 94 | H97: 0.6152604939 | I97: 3.510428701
G98: 95 | H98: 0.8354341955 | I98: 3.674262168
G99: 96 | H99: 0.8883456778 | I99: 3.724263588
G100: 97 | H100: 0.6757833395 | I100: 3.55218227
G101: 98 | H101: 0.9210306353 | I101: 3.760968984
G102: 99 | H102: 0.1068295732 | I102: 3.084379139
G103: 100 | H103: 0.8287429851 | I103: 3.668471916
G104: 101 | H104: 0.04612733891 | I104: 2.969755629
G105: 102 | H105: 0.64943653 | I105: 3.533868964
G106: 103 | H106: 0.9325177532 | I106: 3.775649764
G107: 104 | H107: 0.8457285976 | I107: 3.683364293
G108: 105 | H108: 0.8073253294 | I108: 3.650517909
G109: 106 | H109: 0.2260475294 | I109: 3.220919794
G110: 107 | H110: 0.6800600652 | I110: 3.555181244
G111: 108 | H111: 0.08799900637 | I111: 3.054970794
G112: 109 | H112: 0.1118505521 | I112: 3.091647763
G113: 110 | H113: 0.9052157126 | I113: 3.742431022
G114: 111 | H114: 0.8389034867 | I114: 3.677302379
G115: 112 | H115: 0.4549900057 | I115: 3.40097209
G116: 113 | H116: 0.5149999675 | I116: 3.442330114
G117: 114 | H117: 0.6516064477 | I117: 3.53536788
G118: 115 | H118: 0.934937911 | I118: 3.778904475
G119: 116 | H119: 0.1510454075 | I119: 3.142392613
G120: 117 | H120: 0.3616902809 | I120: 3.333597928
G121: 118 | H121: 0.6836813375 | I121: 3.557727131
G122: 119 | H122: 0.9776910915 | I122: 3.853818084
G123: 120 | H123: 0.2517759947 | I123: 3.244415101
G124: 121 | H124: 0.01182085095 | I124: 2.836427306
G125: 122 | H125: 0.0003309842208 | I125: 2.647543795
G126: 123 | H126: 0.9577577658 | I126: 3.813471486
G127: 124 | H127: 0.1282944359 | I127: 3.114100548
G128: 125 | H128: 0.4929292253 | I128: 3.427229227
G129: 126 | H129: 0.566483626 | I129: 3.477297457
G130: 127 | H130: 0.4803980803 | I130: 3.418604854
G131: 128 | H131: 0.4691977022 | I131: 3.410858347
G132: 129 | H132: 0.2675028125 | I132: =IF(Max>Min,BETAINV(H132,ShapeA,ShapeB,Min,Max),Min) -> 3.258169166
G133: 130 | H133: 0.9082263045 | I133: 3.745833881
G134: 131 | H134: 0.8250353894 | I134: 3.665303062
G135: 132 | H135: 0.9921814668 | I135: 3.900734005
G136: 133 | H136: 0.0175651437 | I136: 2.870059826
G137: 134 | H137: 0.6463262507 | I137: 3.531723042
G138: 135 | H138: 0.089343351 | I138: 3.057198798
G139: 136 | H139: 0.03568418496 | I139: 2.940430015
G140: 137 | H140: 0.1618635037 | I140: 3.154939388
G141: 138 | H141: 0.2408234566 | I141: 3.234575001
G142: 139 | H142: 0.2324340656 | I142: 3.226878374
G143: 140 | H143: 0.7447720872 | I143: 3.601839469
G144: 141 | H144: 0.2399927793 | I144: 3.233819282
G145: 142 | H145: 0.4949218066 | I145: 3.428596887
G146: 143 | H146: 0.5640942772 | I146: 3.475677974
G147: 144 | H147: 0.02490650671 | I147: 2.902942256
G148: 145 | H148: 0.8512006584 | I148: 3.688306913
G149: 146 | H149: 0.09338639335 | I149: 3.063770264
G150: 147 | H150: 0.4688587701 | I150: 3.410623317
G151: 148 | H151: 0.474438187 | I151: 3.414487626
G152: 149 | H152: 0.7597264173 | I152: 3.613073396
G153: 150 | H153: 0.4449700311 | I153: 3.393954297
G154: 151 | H154: 0.1209712603 | I154: 3.1043392
G155: 152 | H155: 0.934789951 | I155: 3.778703692
G156: 153 | H156: 0.09341043627 | I156: 3.063808783
G157: 154 | H157: 0.2129096305 | I157: 3.208369748
G158: 155 | H158: 0.6901047062 | I158: 3.562258541
G159: 156 | H159: 0.7271066801 | I159: 3.588820281
G160: 157 | H160: 0.5074845637 | I160: 3.437199102
G161: 158 | H161: 0.2217675438 | I161: 3.216875877
G162: 159 | H162: 0.6303712035 | I162: 3.520757978
G163: 160 | H163: 0.4729317653 | I163: 3.41344525
G164: 161 | H164: 0.03980638741 | I164: 2.952640331
G165: 162 | H165: 0.3944581116 | I165: 3.357852439
G166: 163 | H166: 0.09365205739 | I166: 3.064195526
G167: 164 | H167: 0.7177938672 | I167: 3.582052686
G168: 165 | H168: 0.6721946143 | I168: 3.549671923
G169: 166 | H169: 0.5171877983 | I169: 3.443821961
G170: 167 | H170: 0.00165174776 | I170: 2.712467011
G171: 168 | H171: 0.7191172404 | I171: 3.583010669
G172: 169 | H172: 0.1399310977 | I172: 3.128924097
G173: 170 | H173: 0.7561657396 | I173: 3.610379188
G174: 171 | H174: 0.9070332978 | I174: 3.744478953
G175: 172 | H175: 0.7522818994 | I175: 3.607454589
G176: 173 | H176: 0.4763314641 | I176: 3.415796697
G177: 174 | H177: 0.02447376549 | I177: 2.901213104
G178: 175 | H178: 0.6082180733 | I178: 3.505629259
G179: 176 | H179: 0.7379245073 | I179: 3.596762778
G180: 177 | H180: 0.2719760492 | I180: 3.262006761
G181: 178 | H181: 0.1223419655 | I181: 3.106193832
G182: 179 | H182: 0.7215997371 | I182: 3.58481099
G183: 180 | H183: 0.1033814851 | I183: 3.079260184
G184: 181 | H184: 0.1537975167 | I184: 3.145634265
G185: 182 | H185: 0.5028491548 | I185: 3.434028979
G186: 183 | H186: 0.79277499 | I186: 3.638754644
G187: 184 | H187: 0.6438478564 | I187: 3.530015177
G188: 185 | H188: 0.2701414003 | I188: 3.260436621
G189: 186 | H189: 0.729242716 | I189: 3.590381397
G190: 187 | H190: 0.5721584064 | I190: 3.481143937
G191: 188 | H191: 0.9090153506 | I191: 3.746734802
G192: 189 | H192: 0.8702693875 | I192: 3.706183753
G193: 190 | H193: 0.9416549899 | I193: 3.78828726
G194: 191 | H194: 0.7925609831 | I194: 3.63858394
G195: 192 | H195: 0.8865766457 | I195: 3.722436948
G196: 193 | H196: 0.8231806237 | I196: =IF(Max>Min,BETAINV(H196,ShapeA,ShapeB,Min,Max),Min) -> 3.663727915
G197: 194 | H197: 0.8432898909 | I197: 3.681185587
G198: 195 | H198: 0.7492364968 | I198: 3.605171327
G199: 196 | H199: 0.6149313196 | I199: 3.510204182
G200: 197 | H200: 0.1650567421 | I200: 3.158546799
... 803 more rows

Sheet RV2 (hidden)
A1: TRUE
B2: DISTRIBUTION SCHEDULE | H2: Random
G3: Iteration | H3: Draw | I3: Value
C4: Interval | D4: Unit | G4: 1 | H4: 0.9043332157 | I4: =IF(Max>Min,BETAINV(H4,ShapeA,ShapeB,Min,Max),Min) -> 64.01038773
C5: 0.5 | G5: 2 | H5: 0.1316419022 | I5: 47.17086789
C6: 0.5 | G6: 3 | H6: 0.1142581542 | I6: 46.62664782
C7: 0.25 | G7: 4 | H7: 0.2383300442 | I7: 49.89545828
C8: =(Max-Min)/35 -> 1.142857143 | D8: =IF(B8="Days","Day",IF(B8="Weeks","Week","Month")) -> Month | G8: 5 | H8: 0.6099763426 | I8: 57.03183683
G9: 6 | H9: 0.6907412016 | I9: 58.6024608
B10: INPUTS | G10: 7 | H10: 0.5433191831 | I10: 55.79336946
B11: Min | C11: =SimplePartialBudget!G61 -> 35 | D11: =B8 -> 0 | G11: 8 | H11: 0.8088231384 | I11: 61.21260471
B12: Max | C12: =SimplePartialBudget!G62 -> 75 | D12: =B8 -> 0 | G12: 9 | H12: 0.7105582606 | I12: 59.00724082
B13: Mode | C13: =SimplePartialBudget!G60 -> 55 | D13: =B8 -> 0 | G13: 10 | H13: 0.8591628824 | I13: 62.55729611
G14: 11 | H14: 0.5339007075 | I14: 55.62049556
B15: PERT ESTIMATES | G15: 12 | H15: 0.348524444 | I15: 52.17443655
B16: Mean | C16: =(Min+Max+4*Mode)/6 -> 55 | D16: =B8 -> 0 | G16: 13 | H16: 0.994695583 | I16: 70.21580088
B17: Std. Dev. | C17: =(Max-Min)/6 -> 6.666666667 | D17: =B8 -> 0 | G17: 14 | H17: 0.4795195277 | I17: 54.62536851
B18: Skew | C18: =(2*(ShapeB-ShapeA)/(ShapeA+ShapeB+2))*((ShapeA+ShapeB+1)/(ShapeA*ShapeB))^0.5 -> 0 | G18: 15 | H18: 0.7638161873 | I18: 60.15267093
B19: Shape A | C19: =IF(Max>Min,((Mean-Min)/(Max-Min))*((((Mean-Min)*(Max-Mean))/(StdDev^2))-1),0) -> 4 | G19: 16 | H19: 0.9038350122 | I19: 63.99242261
B20: Shape B | C20: =ShapeA*(Max-Mean)/(Mean-Min) -> 4 | G20: 17 | H20: 0.1977636565 | I20: 48.94935044
G21: 18 | H21: 0.8650536465 | I21: 62.7302849
B22: CALCULATED VALUES | G22: 19 | H22: 0.6432842028 | I22: 57.66697397
B23: Mean - Mode | D23: Weeks | G23: 20 | H23: 0.8553953561 | I23: 62.44870557
B24: Median - Mode | C24: 3.099706411 | D24: Weeks | G24: 21 | H24: 0.7116825702 | I24: 59.03050554
B25: Gammaa | C25: 1.465425583 | G25: 22 | H25: 0.4877451317 | I25: 54.77588284
B26: Gammab | C26: 14.73721569 | G26: 23 | H26: 0.6223794944 | I26: 57.26668766
B27: Gammaab | C27: 1272.633337 | G27: 24 | H27: 0.5636421587 | I27: 56.16771481
B28: BetaFn | C28: 0.001696976833 | G28: 25 | H28: 0.962558608 | I28: 66.72492855
G29: 26 | H29: 0.3588909072 | I29: 52.37496333
G30: 27 | H30: 0.7404421673 | I30: 59.63815632
B31: Data | C31: PDF No Data | D31: CDF No Data | G31: 28 | H31: 0.3388573997 | I31: 51.98586148
A32: 1 | B32: =Min -> 35 | C32: =(D33-D32) -> 3.984819387e-05 | D32: 0 | G32: 29 | H32: 0.745441133 | I32: 59.74648936
A33: 2 | B33: =+B32+((Max-Min)/30) -> 36.33333333 | C33: =+D34-D33 -> 0.0005469208962 | D33: =BETADIST(B33,ShapeA,ShapeB,Min,Max) -> 3.984819387e-05 | G33: 30 | H33: 0.8681063983 | I33: 62.82155537
A34: 3 | B34: 37.66666667 | C34: 0.00214123091 | D34: 0.0005867690901 | G34: 31 | H34: 0.5407766958 | I34: 55.74667084
A35: 4 | B35: 39 | C35: 0.005172298125 | D35: 0.002728 | G35: 32 | H35: 0.4117174182 | I35: 53.37500492
A36: 5 | B36: 40.33333333 | C36: 0.009732303612 | D36: 0.007900298125 | G36: 33 | H36: 0.07697506396 | I36: 45.27084331
A37: 6 | B37: 41.66666667 | C37: 0.01571139826 | D37: 0.01763260174 | G37: 34 | H37: 0.2522634533 | I37: 50.2034697
A38: 7 | B38: 43 | C38: 0.02284840238 | D38: 0.033344 | G38: 35 | H38: 0.9481613772 | I38: 65.88948831
A39: 8 | B39: 44.33333333 | C39: 0.0307768962 | D39: 0.05619240238 | G39: 36 | H39: 0.3653675105 | I39: 52.49942455
A40: 9 | B40: 45.66666667 | C40: 0.03906670142 | D40: 0.08696929858 | G40: 37 | H40: 0.8081585095 | I40: 61.19614108
A41: 10 | B41: 47 | C41: 0.04726075354 | D41: 0.126036 | G41: 38 | H41: 0.3724829439 | I41: 52.63548624
A42: 11 | B42: 48.33333333 | C42: 0.05490736534 | D42: 0.1732967535 | G42: 39 | H42: 0.919857464 | I42: 64.60053148
A43: 12 | B43: 49.66666667 | C43: 0.06158788112 | D43: 0.2282041189 | G43: 40 | H43: 0.009170635042 | I43: 40.55648597
A44: 13 | B44: 51 | C44: 0.06693972199 | D44: 0.289792 | G44: 41 | H44: 0.858031608 | I44: 62.52452688
A45: 14 | B45: 52.33333333 | C45: 0.07067482213 | D45: 0.356731722 | G45: 42 | H45: 0.5166412844 | I45: 55.30436825
A46: 15 | B46: 53.66666667 | C46: 0.07259345588 | D46: 0.4274065441 | G46: 43 | H46: 0.304862334 | I46: 51.30856263
A47: 16 | B47: 55 | C47: 0.07259345588 | D47: 0.5 | G47: 44 | H47: 0.8275683413 | I47: 61.68921865
A48: 17 | B48: 56.33333333 | C48: 0.07067482213 | D48: 0.5725934559 | G48: 45 | H48: 0.7164476629 | I48: 59.12948997
A49: 18 | B49: 57.66666667 | C49: 0.06693972199 | D49: 0.643268278 | G49: 46 | H49: 0.7567849798 | I49: 59.99569528
A50: 19 | B50: 59 | C50: 0.06158788112 | D50: 0.710208 | G50: 47 | H50: 0.04513761938 | I50: 43.74310688
A51: 20 | B51: 60.33333333 | C51: 0.05490736534 | D51: 0.7717958811 | G51: 48 | H51: 0.1375051814 | I51: 47.34535231
A52: 21 | B52: 61.66666667 | C52: 0.04726075354 | D52: 0.8267032465 | G52: 49 | H52: 0.3804186664 | I52: 52.78645384
A53: 22 | B53: 63 | C53: 0.03906670142 | D53: 0.873964 | G53: 50 | H53: 0.6600950565 | I53: 57.99362635
A54: 23 | B54: 64.33333333 | C54: 0.0307768962 | D54: 0.9130307014 | G54: 51 | H54: 0.762829427 | I54: 60.13051915
A55: 24 | B55: 65.66666667 | C55: 0.02284840238 | D55: 0.9438075976 | G55: 52 | H55: 0.1763040058 | I55: 48.41128814
A56: 25 | B56: 67 | C56: 0.01571139826 | D56: 0.966656 | G56: 53 | H56: 0.7182021915 | I56: 59.16609587
A57: 26 | B57: 68.33333333 | C57: 0.009732303612 | D57: 0.9823673983 | G57: 54 | H57: 0.5520949664 | I57: 55.95476656
A58: 27 | B58: 69.66666667 | C58: 0.005172298125 | D58: 0.9920997019 | G58: 55 | H58: 0.8123376684 | I58: 61.30013372
A59: 28 | B59: 71 | C59: 0.00214123091 | D59: 0.997272 | G59: 56 | H59: 0.6527953563 | I59: 57.85121595
A60: 29 | B60: 72.33333333 | C60: 0.0005469208962 | D60: 0.9994132309 | G60: 57 | H60: 0.7403777922 | I60: 59.6367669
A61: 30 | B61: 73.66666667 | C61: 0 | D61: 0.9999601518 | G61: 58 | H61: 0.5017024913 | I61: 55.03113134
A62: 31 | B62: =Max -> 75 | C62: =+D62-D61 -> 0 | D62: =BETADIST(B61,ShapeA,ShapeB,Min,Max) -> 0.9999601518 | G62: 59 | H62: 0.7921120218 | I62: 60.80668739
C63: =SUM(C32:C62) -> 0.9999601518 | G63: 60 | H63: 0.6085976514 | I63: 57.00583986
B64: Cumulative Beta Percentile | D64: =B8 -> 0 | G64: 61 | H64: 0.4016919099 | I64: 53.18755504
B65: 0.25 | D65: =BETAINV(B65,ShapeA,ShapeB,Min,Max) -> 50.15393763 | G65: 62 | H65: 0.8676140547 | I65: 62.80675762
B66: 0.5 | D66: =BETAINV(B66,ShapeA,ShapeB,Min,Max) -> 55 | G66: 63 | H66: 0.9942554212 | I66: 70.11109023
B67: 0.75 | D67: =BETAINV(B67,ShapeA,ShapeB,Min,Max) -> 59.84606237 | G67: 64 | H67: 0.6035445903 | I67: 56.91073119
B68: 0.9 | D68: =BETAINV(B68,ShapeA,ShapeB,Min,Max) -> 63.85591806 | G68: 65 | H68: 0.722945712 | I68: =IF(Max>Min,BETAINV(H68,ShapeA,ShapeB,Min,Max),Min) -> 59.26550604
B69: 0.95 | D69: =BETAINV(B69,ShapeA,ShapeB,Min,Max) -> 65.98713664 | G69: 66 | H69: 0.4828324815 | I69: 54.68600228
G70: 67 | H70: 0.3789847432 | I70: 52.75923338
B71: Quick Estimate at 95% Probability | G71: 68 | H71: 0.5927617592 | I71: 56.70863104
B72: Mean + 2x Std. Dev.= | C72: =Mean+2*StdDev -> 68.33333333 | D72: =B8 -> 0 | G72: 69 | H72: 0.6584323468 | I72: 57.96110807
B73: Mean - 2x Std. Dev.= | C73: =Mean-2*StdDev -> 41.66666667 | D73: =B8 -> 0 | G73: 70 | H73: 0.07988907053 | I73: 45.38928982
G74: 71 | H74: 0.5999418272 | I74: 56.84308021
G75: 72 | H75: 0.8864465247 | I75: 63.39636392
G76: 73 | H76: 0.4721830335 | I76: 54.49101738
G77: 74 | H77: 0.2271985448 | I77: 49.64370175
G78: 75 | H78: 0.9779921614 | I78: 67.90115388
G79: 76 | H79: 0.005019005398 | I79: 39.71299195
G80: 77 | H80: 0.2863891416 | I80: 50.92951374
G81: 78 | H81: 0.5387157793 | I81: 55.70883539
G82: 79 | H82: 0.5328878986 | I82: 55.60192363
G83: 80 | H83: 0.9579855794 | I83: 66.44010551
G84: 81 | H84: 0.3944800908 | I84: 53.05212125
G85: 82 | H85: 0.1221557895 | I85: 46.87924758
G86: 83 | H86: 0.5760374657 | I86: 56.39719833
G87: 84 | H87: 0.6045324552 | I87: 56.92930379
G88: 85 | H88: 0.7753897131 | I88: 60.41561925
G89: 86 | H89: 0.7792390505 | I89: 60.504419
G90: 87 | H90: 0.07933375623 | I90: 45.36692126
G91: 88 | H91: 0.004063362954 | I91: 39.45149443
G92: 89 | H92: 0.2728048586 | I92: 50.64487292
G93: 90 | H93: 0.4324690862 | I93: 53.760398
G94: 91 | H94: 0.29391541 | I94: 51.08499816
G95: 92 | H95: 0.01769182897 | I95: 41.67297563
G96: 93 | H96: 0.236866444 | I96: 49.86265777
G97: 94 | H97: 0.4717535035 | I97: 54.4831476
G98: 95 | H98: 0.9804963068 | I98: 68.14055564
G99: 96 | H99: 0.6987429705 | I99: 58.76474197
G100: 97 | H100: 0.06242224293 | I100: 44.63409368
G101: 98 | H101: 0.113998594 | I101: 46.61818111
G102: 99 | H102: 0.4915060676 | I102: 54.84467301
G103: 100 | H103: 0.2413838988 | I103: 49.96361601
G104: 101 | H104: 0.856029449 | I104: 62.46687435
G105: 102 | H105: 0.8401317342 | I105: 62.02351124
G106: 103 | H106: 0.03660879161 | I106: 43.22082466
G107: 104 | H107: 0.9090365546 | I107: 64.18276637
G108: 105 | H108: 0.08281559889 | I108: 45.50565583
G109: 106 | H109: 0.08220384613 | I109: 45.48153757
G110: 107 | H110: 0.1220686861 | I110: 46.87651252
G111: 108 | H111: 0.3859173228 | I111: 52.89060844
G112: 109 | H112: 0.666705643 | I112: 58.12340034
G113: 110 | H113: 0.6546352751 | I113: 57.88702589
G114: 111 | H114: 0.2669812041 | I114: 50.52114704
G115: 112 | H115: 0.1881724664 | I115: 48.71262079
G116: 113 | H116: 0.8791606637 | I116: 63.1622063
G117: 114 | H117: 0.7675078028 | I117: 60.23590779
G118: 115 | H118: 0.4200828302 | I118: 53.53075401
G119: 116 | H119: 0.5207093174 | I119: 55.37882054
G120: 117 | H120: 0.4285399759 | I120: 53.68766669
G121: 118 | H121: 0.4515409098 | I121: 54.11214327
G122: 119 | H122: 0.02128903917 | I122: 42.03208575
G123: 120 | H123: 0.2377035603 | I123: 49.88142907
G124: 121 | H124: 0.5913435126 | I124: 56.68213018
G125: 122 | H125: 0.5709750889 | I125: 56.30335119
G126: 123 | H126: 0.7550678175 | I126: 59.95765869
G127: 124 | H127: 0.000765402264 | I127: 37.85851427
G128: 125 | H128: 0.111209816 | I128: 46.52651288
G129: 126 | H129: 0.8216406121 | I129: 61.53581726
G130: 127 | H130: 0.9084145608 | I130: 64.15967362
G131: 128 | H131: 0.7271819434 | I131: 59.35484788
G132: 129 | H132: 0.1890058609 | I132: =IF(Max>Min,BETAINV(H132,ShapeA,ShapeB,Min,Max),Min) -> 48.73342097
G133: 130 | H133: 0.405043888 | I133: 53.25033019
G134: 131 | H134: 0.3214154174 | I134: 51.64132485
G135: 132 | H135: 0.4175830233 | I135: 53.48427095
G136: 133 | H136: 0.07602167678 | I136: 45.23150363
G137: 134 | H137: 0.2667429888 | I137: 50.51606317
G138: 135 | H138: 0.1960812223 | I138: 48.90823486
G139: 136 | H139: 0.7673889684 | I139: 60.2332193
G140: 137 | H140: 0.7126462205 | I140: 59.050473
G141: 138 | H141: 0.844968924 | I141: 62.15584314
G142: 139 | H142: 0.9679658155 | I142: 67.09256653
G143: 140 | H143: 0.9902291607 | I143: 69.34550525
G144: 141 | H144: 0.7393071547 | I144: 59.6136799
G145: 142 | H145: 0.5166706456 | I145: 55.30490552
G146: 143 | H146: 0.7654052862 | I146: 60.1884303
G147: 144 | H147: 0.01772968021 | I147: 41.67700011
G148: 145 | H148: 0.1675586749 | I148: 48.18265655
G149: 146 | H149: 0.8580992895 | I149: 62.52648341
G150: 147 | H150: 0.5174294972 | I150: 55.31879179
G151: 148 | H151: 0.6546589037 | I151: 57.88748613
G152: 149 | H152: 0.9891624217 | I152: 69.18113142
G153: 150 | H153: 0.1133164381 | I153: 46.59587726
G154: 151 | H154: 0.48349163 | I154: 54.69806386
G155: 152 | H155: 0.3232887878 | I155: 51.67861456
G156: 153 | H156: 0.7501001191 | I156: 59.84825769
G157: 154 | H157: 0.08332750838 | I157: 45.5257559
G158: 155 | H158: 0.2128768954 | I158: 49.31146082
G159: 156 | H159: 0.742791627 | I159: 59.68896284
G160: 157 | H160: 0.4820455506 | I160: 54.67160154
G161: 158 | H161: 0.2776024222 | I161: 50.74601482
G162: 159 | H162: 0.03907195664 | I162: 43.37908333
G163: 160 | H163: 0.2254024146 | I163: 49.60256835
G164: 161 | H164: 0.6607349081 | I164: 58.00615311
G165: 162 | H165: 0.928331418 | I165: 64.9520343
G166: 163 | H166: 0.6688854511 | I166: 58.16636886
G167: 164 | H167: 0.1550207393 | I167: 47.84387178
G168: 165 | H168: 0.1961250469 | I168: 48.90930801
G169: 166 | H169: 0.9295827046 | I169: 65.00604342
G170: 167 | H170: 0.6795606902 | I170: 58.37813327
G171: 168 | H171: 0.121159771 | I171: 46.84790709
G172: 169 | H172: 0.2060606795 | I172: 49.14970559
G173: 170 | H173: 0.4306581473 | I173: 53.72688853
G174: 171 | H174: 0.514136564 | I174: 55.25854037
G175: 172 | H175: 0.215474691 | I175: 49.37247087
G176: 173 | H176: 0.8138159334 | I176: 61.33719047
G177: 174 | H177: 0.7417933111 | I177: 59.66735115
G178: 175 | H178: 0.7169258935 | I178: 59.13945898
G179: 176 | H179: 0.915308825 | I179: 64.42105771
G180: 177 | H180: 0.6195706059 | I180: 57.2133426
G181: 178 | H181: 0.4145928879 | I181: 53.42860529
G182: 179 | H182: 0.6556163763 | I182: 57.90614401
G183: 180 | H183: 0.9786953852 | I183: 67.96645172
G184: 181 | H184: 0.693360532 | I184: 58.65541736
G185: 182 | H185: 0.2224217866 | I185: 49.53398024
G186: 183 | H186: 0.4421518598 | I186: 53.93922641
G187: 184 | H187: 0.1011117319 | I187: 46.18308129
G188: 185 | H188: 0.2202915099 | I188: 49.48470348
G189: 186 | H189: 0.9803293775 | I189: 68.1239739
G190: 187 | H190: 0.2603650452 | I190: 50.37925563
G191: 188 | H191: 0.4327041922 | I191: 53.76474683
G192: 189 | H192: 0.7990868051 | I192: 60.97413069
G193: 190 | H193: 0.9348838112 | I193: 65.24163255
G194: 191 | H194: 0.6056711633 | I194: 56.95072488
G195: 192 | H195: 0.1813084642 | I195: 48.53954461
G196: 193 | H196: 0.9919138863 | I196: =IF(Max>Min,BETAINV(H196,ShapeA,ShapeB,Min,Max),Min) -> 69.63253806
G197: 194 | H197: 0.833192678 | I197: 61.83726765
G198: 195 | H198: 0.1732506342 | I198: 48.3321325
G199: 196 | H199: 0.3892161953 | I199: 52.9529278
G200: 197 | H200: 0.6011525581 | I200: 56.86580027
... 803 more rows

Sheet NetBenefit (hidden)
A1: Iteration | B1: Net Benefit | C1: Sorted Results | D1: Net Benefit | E1: Probability | G1: Graph Data: | H1: Net Benefit | I1: Probability
A2: 1 | B2: -211.47 | C2: -381.31 | D2: =C2 -> -381.31 | E2: =(A2-1)/10 -> 0 | H2: =D2 -> -381.31 | I2: =E2 -> 0
A3: 2 | B3: -182.44 | C3: -375.45 | H3: =D11 -> -345.77 | I3: =E11 -> 1
A4: 3 | B4: -199.82 | C4: -364.09 | H4: =D21 -> -324.9 | I4: =E21 -> 2
A5: 4 | B5: -226.3 | C5: -359.38 | H5: =D31 -> -314.62 | I5: =E31 -> 3
A6: 5 | B6: -160.49 | C6: -356.59 | H6: =D41 -> -309.51 | I6: =E41 -> 4
A7: 6 | B7: -212.19 | C7: -350.33 | H7: =D51 -> -304.69 | I7: =E51 -> 5
A8: 7 | B8: -213.34 | C8: -348.34 | H8: =D61 -> -300.16 | I8: =E61 -> 6
A9: 8 | B9: -216.7 | C9: -348.08 | H9: =D71 -> -294.2 | I9: =E71 -> 7
A10: 9 | B10: -143.74 | C10: -345.88 | H10: =D81 -> -290.37 | I10: =E81 -> 8
A11: 10 | B11: -75.45 | C11: -345.77 | D11: =C11 -> -345.77 | E11: =A11/10 -> 1 | H11: =D91 -> -285.04 | I11: =E91 -> 9
A12: 11 | B12: -196.92 | C12: -340.47 | H12: =D101 -> -282.83 | I12: =E101 -> 10
A13: 12 | B13: -261.69 | C13: -332.93 | H13: =D111 -> -279.93 | I13: =E111 -> 11
A14: 13 | B14: -55.37 | C14: -329.56 | H14: =D121 -> -276.07 | I14: =E121 -> 12
A15: 14 | B15: -240.41 | C15: -328.02 | H15: =D131 -> -274.01 | I15: =E131 -> 13
A16: 15 | B16: -143.89 | C16: -327.96 | H16: =D141 -> -269.5 | I16: =E141 -> 14
A17: 16 | B17: -129.79 | C17: -327.92 | H17: =D151 -> -265.96 | I17: =E151 -> 15
A18: 17 | B18: -146.47 | C18: -327.34 | H18: =D161 -> -264.05 | I18: =E161 -> 16
A19: 18 | B19: -116.88 | C19: -326.57 | H19: =D171 -> -262.3 | I19: =E171 -> 17
A20: 19 | B20: -91.09 | C20: -325.32 | H20: =D181 -> -260.25 | I20: =E181 -> 18
A21: 20 | B21: -130.67 | C21: -324.9 | D21: =C21 -> -324.9 | E21: =A21/10 -> 2 | H21: =D191 -> -257.2 | I21: =E191 -> 19
A22: 21 | B22: -85.81 | C22: -321.62 | H22: =D201 -> -255.45 | I22: =E201 -> 20
A23: 22 | B23: -155 | C23: -320.85 | H23: =D211 -> -254.48 | I23: =E211 -> 21
A24: 23 | B24: -104.59 | C24: -320.73 | H24: =D221 -> -252.35 | I24: =E221 -> 22
A25: 24 | B25: -204.72 | C25: -320.51 | H25: =D231 -> -250.46 | I25: =E231 -> 23
A26: 25 | B26: -84.37 | C26: -320.13 | H26: =D241 -> -248.87 | I26: =E241 -> 24
A27: 26 | B27: -95.38 | C27: -317.95 | H27: =D251 -> -246.89 | I27: =E251 -> 25
A28: 27 | B28: -149.68 | C28: -317.52 | H28: =D261 -> -244.54 | I28: =E261 -> 26
A29: 28 | B29: -100.92 | C29: -316.05 | H29: =D271 -> -242.74 | I29: =E271 -> 27
A30: 29 | B30: -114.5 | C30: -314.63 | H30: =D281 -> -241.18 | I30: =E281 -> 28
A31: 30 | B31: -40.88 | C31: -314.62 | D31: =C31 -> -314.62 | E31: =A31/10 -> 3 | H31: =D291 -> -238.64 | I31: =E291 -> 29
A32: 31 | B32: -206.25 | C32: -314.4 | H32: =D301 -> -237.01 | I32: =E301 -> 30
A33: 32 | B33: -195.72 | C33: -313.31 | H33: =D311 -> -234.86 | I33: =E311 -> 31
A34: 33 | B34: -234.95 | C34: -312.98 | H34: =D321 -> -233.18 | I34: =E321 -> 32
A35: 34 | B35: -213.62 | C35: -312.38 | H35: =D331 -> -231.09 | I35: =E331 -> 33
A36: 35 | B36: -80.9 | C36: -311.62 | H36: =D341 -> -229.22 | I36: =E341 -> 34
A37: 36 | B37: -183.32 | C37: -311.11 | H37: =D351 -> -227.82 | I37: =E351 -> 35
A38: 37 | B38: -251.71 | C38: -310.9 | H38: =D361 -> -226.2 | I38: =E361 -> 36
A39: 38 | B39: -277.6 | C39: -310.52 | H39: =D371 -> -223.36 | I39: =E371 -> 37
A40: 39 | B40: -217.68 | C40: -309.94 | H40: =D381 -> -222.07 | I40: =E381 -> 38
A41: 40 | B41: -359.38 | C41: -309.51 | D41: =C41 -> -309.51 | E41: =A41/10 -> 4 | H41: =D391 -> -219.87 | I41: =E391 -> 39
A42: 41 | B42: -49.17 | C42: -309.3 | H42: =D401 -> -218.28 | I42: =E401 -> 40
A43: 42 | B43: -235.13 | C43: -307.85 | H43: =D411 -> -216.73 | I43: =E411 -> 41
A44: 43 | B44: -117.93 | C44: -307.48 | H44: =D421 -> -214.21 | I44: =E421 -> 42
A45: 44 | B45: -131.1 | C45: -306.58 | H45: =D431 -> -212.95 | I45: =E431 -> 43
A46: 45 | B46: -102.94 | C46: -306.44 | H46: =D441 -> -211.11 | I46: =E441 -> 44
A47: 46 | B47: -68.73 | C47: -306.18 | H47: =D451 -> -209.88 | I47: =E451 -> 45
A48: 47 | B48: -298.92 | C48: -306.16 | H48: =D461 -> -208.32 | I48: =E461 -> 46
A49: 48 | B49: -75.5 | C49: -305.99 | H49: =D471 -> -206.16 | I49: =E471 -> 47
A50: 49 | B50: -199.11 | C50: -305.72 | H50: =D481 -> -204.72 | I50: =E481 -> 48
A51: 50 | B51: -193.89 | C51: -304.69 | D51: =C51 -> -304.69 | E51: =A51/10 -> 5 | H51: =D491 -> -201.34 | I51: =E491 -> 49
A52: 51 | B52: -113.27 | C52: -304.61 | H52: =D501 -> -198.56 | I52: =E501 -> 50
A53: 52 | B53: -320.85 | C53: -304.47 | H53: =D511 -> -196.96 | I53: =E511 -> 51
A54: 53 | B54: -96.59 | C54: -303.2 | H54: =D521 -> -195.3 | I54: =E521 -> 52
A55: 54 | B55: -221 | C55: -303.17 | H55: =D531 -> -193.37 | I55: =E531 -> 53
A56: 55 | B56: -134.48 | C56: -303.11 | H56: =D541 -> -192.37 | I56: =E541 -> 54
A57: 56 | B57: -144.24 | C57: -302.81 | H57: =D551 -> -190.11 | I57: =E551 -> 55
A58: 57 | B58: -105.39 | C58: -301.73 | H58: =D561 -> -187.95 | I58: =E561 -> 56
A59: 58 | B59: -131.7 | C59: -300.47 | H59: =D571 -> -185.86 | I59: =E571 -> 57
A60: 59 | B60: -207.42 | C60: -300.29 | H60: =D581 -> -184.19 | I60: =E581 -> 58
A61: 60 | B61: -170.21 | C61: -300.16 | D61: =C61 -> -300.16 | E61: =A61/10 -> 6 | H61: =D591 -> -182.2 | I61: =E591 -> 59
A62: 61 | B62: -142.75 | C62: -298.92 | H62: =D601 -> -180.73 | I62: =E601 -> 60
A63: 62 | B63: -100.29 | C63: -298.5 | H63: =D611 -> -178.21 | I63: =E611 -> 61
A64: 63 | B64: -119.98 | C64: -297.34 | H64: =D621 -> -176.3 | I64: =E621 -> 62
A65: 64 | B65: -140.45 | C65: -297.25 | H65: =D631 -> -175.03 | I65: =E631 -> 63
A66: 65 | B66: -103.45 | C66: -297.09 | H66: =D641 -> -173.05 | I66: =E641 -> 64
A67: 66 | B67: -121.26 | C67: -296.75 | H67: =D651 -> -171.12 | I67: =E651 -> 65
A68: 67 | B68: -307.48 | C68: -295.23 | H68: =D661 -> -169.78 | I68: =E661 -> 66
A69: 68 | B69: -94.47 | C69: -294.59 | H69: =D671 -> -167.51 | I69: =E671 -> 67
A70: 69 | B70: -154.23 | C70: -294.23 | H70: =D681 -> -165.28 | I70: =E681 -> 68
A71: 70 | B71: -340.47 | C71: -294.2 | D71: =C71 -> -294.2 | E71: =A71/10 -> 7 | H71: =D691 -> -163.83 | I71: =E691 -> 69
A72: 71 | B72: -145.84 | C72: -293.53 | H72: =D701 -> -161.55 | I72: =E701 -> 70
A73: 72 | B73: 1.56 | C73: -292.42 | H73: =D711 -> -158.5 | I73: =E711 -> 71
A74: 73 | B74: -163.83 | C74: -291.33 | H74: =D721 -> -156.85 | I74: =E721 -> 72
A75: 74 | B75: -246.83 | C75: -291.25 | H75: =D731 -> -154.23 | I75: =E731 -> 73
A76: 75 | B76: -75.03 | C76: -291.17 | H76: =D741 -> -152.01 | I76: =E741 -> 74
A77: 76 | B77: -230.84 | C77: -291.08 | H77: =D751 -> -149.48 | I77: =E751 -> 75
A78: 77 | B78: -200.5 | C78: -290.76 | H78: =D761 -> -146.57 | I78: =E761 -> 76
A79: 78 | B79: -251.61 | C79: -290.48 | H79: =D771 -> -144.95 | I79: =E771 -> 77
A80: 79 | B80: -169 | C80: -290.46 | H80: =D781 -> -142.09 | I80: =E781 -> 78
A81: 80 | B81: -160.9 | C81: -290.37 | D81: =C81 -> -290.37 | E81: =A81/10 -> 8 | H81: =D791 -> -139.42 | I81: =E791 -> 79
A82: 81 | B82: -137.84 | C82: -289.48 | H82: =D801 -> -135.71 | I82: =E801 -> 80
A83: 82 | B83: -163.96 | C83: -289.22 | H83: =D811 -> -134.31 | I83: =E811 -> 81
A84: 83 | B84: -190.22 | C84: -288.51 | H84: =D821 -> -131.27 | I84: =E821 -> 82
A85: 84 | B85: -155.46 | C85: -287.99 | H85: =D831 -> -129.47 | I85: =E831 -> 83
A86: 85 | B86: -174.91 | C86: -287.82 | H86: =D841 -> -126.32 | I86: =E841 -> 84
A87: 86 | B87: -244.87 | C87: -287.36 | H87: =D851 -> -121.68 | I87: =E851 -> 85
A88: 87 | B88: -314.62 | C88: -286.02 | H88: =D861 -> -118.65 | I88: =E861 -> 86
A89: 88 | B89: -345.88 | C89: -285.65 | H89: =D871 -> -115.11 | I89: =E871 -> 87
A90: 89 | B90: -234.87 | C90: -285.23 | H90: =D881 -> -112.28 | I90: =E881 -> 88
A91: 90 | B91: -162.87 | C91: -285.04 | D91: =C91 -> -285.04 | E91: =A91/10 -> 9 | H91: =D891 -> -106.35 | I91: =E891 -> 89
A92: 91 | B92: -213.39 | C92: -284.56 | H92: =D901 -> -103.45 | I92: =E901 -> 90
A93: 92 | B93: -194.68 | C93: -284.27 | H93: =D911 -> -100.03 | I93: =E911 -> 91
A94: 93 | B94: -179.25 | C94: -284.08 | H94: =D921 -> -96.59 | I94: =E921 -> 92
A95: 94 | B95: -221.76 | C95: -283.91 | H95: =D931 -> -92.76 | I95: =E931 -> 93
A96: 95 | B96: -177.5 | C96: -283.62 | H96: =D941 -> -85.81 | I96: =E941 -> 94
A97: 96 | B97: -245.25 | C97: -283.44 | H97: =D951 -> -78.69 | I97: =E951 -> 95
A98: 97 | B98: -290.46 | C98: -283.3 | H98: =D961 -> -70.77 | I98: =E961 -> 96
A99: 98 | B99: -326.57 | C99: -283.21 | H99: =D971 -> -58.32 | I99: =E971 -> 97
A100: 99 | B100: -121.6 | C100: -283.03 | H100: =D981 -> -49.17 | I100: =E981 -> 98
A101: 100 | B101: -285.23 | C101: -282.83 | D101: =C101 -> -282.83 | E101: =A101/10 -> 10 | H101: =D991 -> -25.86 | I101: =E991 -> 99
A102: 101 | B102: -49.5 | C102: -282.57 | H102: =D1001 -> 7.64 | I102: =E1001 -> 100
A103: 102 | B103: -181.91 | C103: -282.05
A104: 103 | B104: -350.33 | C104: -282.02
A105: 104 | B105: -203.34 | C105: -281.79
A106: 105 | B106: -307.85 | C106: -280.92
A107: 106 | B107: -209.18 | C107: -280.46
A108: 107 | B108: -277.69 | C108: -280.42
A109: 108 | B109: -126.56 | C109: -280.41
A110: 109 | B110: -103.6 | C110: -280.26
A111: 110 | B111: -254.7 | C111: -279.93 | D111: =C111 -> -279.93 | E111: =A111/10 -> 11
A112: 111 | B112: -283.91 | C112: -278.07
A113: 112 | B113: -231.21 | C113: -277.69
A114: 113 | B114: -154.02 | C114: -277.6
A115: 114 | B115: -192.98 | C115: -277.36
A116: 115 | B116: -289.22 | C116: -276.91
A117: 116 | B117: -131.74 | C117: -276.68
A118: 117 | B118: -185.86 | C118: -276.36
A119: 118 | B119: -234.86 | C119: -276.25
A120: 119 | B120: -375.45 | C120: -276.23
A121: 120 | B121: -188.19 | C121: -276.07 | D121: =C121 -> -276.07 | E121: =A121/10 -> 12
A122: 121 | B122: -53.55 | C122: -276.06
A123: 122 | B123: -12.38 | C123: -276.03
A124: 123 | B124: -258.61 | C124: -275.76
A125: 124 | B125: -230.35 | C125: -275.05
A126: 125 | B126: -250.36 | C126: -274.74
A127: 126 | B127: -171.82 | C127: -274.43
A128: 127 | B128: -142.58 | C128: -274.37
A129: 128 | B129: -169.63 | C129: -274.2
A130: 129 | B130: -198.24 | C130: -274.1
A131: 130 | B131: -283.3 | C131: -274.01 | D131: =C131 -> -274.01 | E131: =A131/10 -> 13
A132: 131 | B132: -274.43 | C132: -273.51
A133: 132 | B133: -317.52 | C133: -272.8
A134: 133 | B134: -129.98 | C134: -272.42
A135: 134 | B135: -250.46 | C135: -272.36
A136: 135 | B136: -150.97 | C136: -270.95
A137: 136 | B137: -56.16 | C137: -270.94
A138: 137 | B138: -112.59 | C138: -270.54
A139: 138 | B139: -112.28 | C139: -270.42
A140: 139 | B140: -80.89 | C140: -270.33
A141: 140 | B141: -153.61 | C141: -269.5 | D141: =C141 -> -269.5 | E141: =A141/10 -> 14
A142: 141 | B142: -127.36 | C142: -268.95
A143: 142 | B143: -198.01 | C143: -268.4
A144: 143 | B144: -179.54 | C144: -267.47
A145: 144 | B145: -158.87 | C145: -267.4
A146: 145 | B146: -300.47 | C146: -267.06
A147: 146 | B147: -70.77 | C147: -266.89
A148: 147 | B148: -193.79 | C148: -266.62
A149: 148 | B149: -179.27 | C149: -266.33
A150: 149 | B150: -157.18 | C150: -266.14
A151: 150 | B151: -242.29 | C151: -265.96 | D151: =C151 -> -265.96 | E151: =A151/10 -> 15
A152: 151 | B152: -127.07 | C152: -265.57
A153: 152 | B153: -300.29 | C153: -265.39
A154: 153 | B154: -86.85 | C154: -265.36
A155: 154 | B155: -206.03 | C155: -265.04
A156: 155 | B156: -264.71 | C156: -264.87
A157: 156 | B157: -208.55 | C157: -264.86
A158: 157 | B158: -203.79 | C158: -264.71
A159: 158 | B159: -176.67 | C159: -264.66
A160: 159 | B160: -290.76 | C160: -264.23
A161: 160 | B161: -228.74 | C161: -264.05 | D161: =C161 -> -264.05 | E161: =A161/10 -> 16
A162: 161 | B162: -72.33 | C162: -263.96
A163: 162 | B163: -123.85 | C163: -263.78
A164: 163 | B164: -97.03 | C164: -263.48
A165: 164 | B165: -278.07 | C165: -263.4
A166: 165 | B166: -264.23 | C166: -263.24
A167: 166 | B167: -143.3 | C167: -262.99
A168: 167 | B168: -14.86 | C168: -262.71
A169: 168 | B169: -284.27 | C169: -262.58
A170: 169 | B170: -166.01 | C170: -262.42
A171: 170 | B171: -249.29 | C171: -262.3 | D171: =C171 -> -262.3 | E171: =A171/10 -> 17
A172: 171 | B172: -270.94 | C172: -262.19
A173: 172 | B173: -274.74 | C173: -262.1
A174: 173 | B174: -158.87 | C174: -261.69
A175: 174 | B175: -50.53 | C175: -261.64
A176: 175 | B176: -192.72 | C176: -261.44
A177: 176 | B177: -181.99 | C177: -261
A178: 177 | B178: -148.24 | C178: -260.75
A179: 178 | B179: -135.11 | C179: -260.39
A180: 179 | B180: -218.33 | C180: -260.38
A181: 180 | B181: -41.69 | C181: -260.25 | D181: =C181 -> -260.25 | E181: =A181/10 -> 18
A182: 181 | B182: -112.82 | C182: -259.61
A183: 182 | B183: -233.88 | C183: -259.42
A184: 183 | B184: -254.54 | C184: -259.39
A185: 184 | B185: -276.07 | C185: -258.77
A186: 185 | B186: -194.25 | C186: -258.61
A187: 186 | B187: -158.3 | C187: -258.49
A188: 187 | B188: -239.65 | C188: -257.87
A189: 188 | B189: -280.42 | C189: -257.62
A190: 189 | B190: -227.84 | C190: -257.51
A191: 190 | B191: -221.12 | C191: -257.2 | D191: =C191 -> -257.2 | E191: =A191/10 -> 19
A192: 191 | B192: -236.43 | C192: -257.19
A193: 192 | B193: -306.18 | C193: -257.01
A194: 193 | B194: -166.12 | C194: -256.68
A195: 194 | B195: -216.91 | C195: -256.64
A196: 195 | B196: -280.46 | C196: -256.46
A197: 196 | B197: -230.89 | C197: -256.28
A198: 197 | B198: -126.53 | C198: -256.18
A199: 198 | B199: -125.66 | C199: -255.75
A200: 199 | B200: -244.69 | C200: -255.62
... 801 more rows

Sheet Sheet1 (hidden)
A1: =NetBenefit!D2 -> -381.31
